[Event "14th Karen Asrian Memorial 2024"]
[Site "Yerevan"]
[Date "2024.04.24"]
[Round "1.6"]
[White "Elashvili, Giorgi"]
[Black "Sanikidze, Tornike"]
[Result "0-1"]
[ECO "A36"]
[WhiteElo "2021"]
[BlackElo "2453"]
[Annotator "TA"]
[PlyCount "81"]
[EventDate "2024.04.24"]
[EventType "swiss"]
[EventCountry "ARM"]
[SourceTitle "playchess.com"]
[Source "ChessBase"]
[SourceQuality "1"]
[TimeControl "40/5400+30:1800+30"]

{[%evp 9,81,4,11,-25,-16,-35,-13,-31,-26,-35,-2,-24,-27,-26,-19,-19,-7,-36,-14,-29,-37,-51,-45,-89,-93,-98,-104,-114,-127,-104,-100,-119,-65,-66,-65,-73,-81,-68,-71,-70,-47,-49,-43,-209,-211,-199,-212,-216,-211,-192,-100,-100,-94,-320,-324,-308,-291,-285,-294,-294,-294,-294,-294,-433,-399,-6091,-6087,-6628,-6279,-29973,-29975,-29974,-29974,-5306]} 1. c4 {[%emt 1:31:00]} g6 {[%emt 1:31:00]} 2. Nc3 {[%emt 0:00:30]} Bg7 {[%emt 0:00:30]} 3. g3 {[%emt 0:00:30]} c5 {[%emt 0:00:30]} 4. Bg2 {[%emt 0:00:30]} Nc6 {[%emt 0:00:30]} 5. d3 {[%emt 0:00:30]} e6 {[%emt 0:00:30]} 6. Qd2 {[%emt 0:00:30]} Nge7 {[%emt 0:00:30]} 7. h4 {[%emt 0:00:30]} h6 {[%emt 0:00:30]} 8. e4 {[%emt 0:00:30] The position is equal.} O-O {[%emt 0:00:30][%cal Od7d5]} 9. Nge2 {[%emt 0:00:30]} a6 {[%emt 0:00:30][%cal Ob7b5]} (9... d5 $5) 10. O-O {[%emt 0:00:30]} Rb8 {[%emt 0:00:30]} 11. b3 {[%emt 0:00:30]} b5 {[%emt 0:00:30] aiming for ...b4.} 12. Bb2 {[%emt 0:00:30]} d6 {[%emt 0:00:30]} 13. Rae1 {[%emt 0:00:30]} Nd4 {[%emt 0:00:30]} 14. Nxd4 {[%emt 0:00:30]} cxd4 {[%emt 0:00:30]} 15. Ne2 {[%emt 0:00:30]} e5 {[%emt 0:00:30]} 16. cxb5 {[%emt 0:00:30]} axb5 {[%emt 0:00:30]} ({Don't play} 16... Rxb5 17. Ba3 $15) 17. Rc1 {[%emt 0:00:30]} b4 {[%emt 0:00:30]} 18. Rc2 {[%emt 0:00:30]} d5 {[%emt 0:00:30]} 19. Rc5 {[%emt 0:00:30]} Be6 {[%emt 0:00:30]} 20. f4 {[%emt 0:00:30]} dxe4 {[%emt 0:00:30]} (20... Qd6 $17 21. Rfc1 f6) 21. fxe5 $15 {[%emt 0:00:30]} e3 {[%emt 0:00:30]} 22. Qc2 {[%emt 0:00:30]} Nf5 {[%emt 0:00:30]} 23. Be4 {[%emt 0:00:30]} Rc8 $36 {[%emt 0:00:30][%mdl 2048] Black is really pushing.} 24. Rxc8 {[%emt 0:00:30]} Qxc8 {[%emt 0:00:30]} (24... Bxc8 {is interesting.} 25. Bxf5 Bxf5 26. Nxd4 Qb6) 25. Qxc8 {[%emt 0:00:30]} Rxc8 {[%emt 0:00:30]} 26. Nxd4 {[%emt 0:00:30]} (26. Bxf5 $15 Bxf5 27. Bxd4) 26... Nxg3 $19 {[%emt 0:00:30]} 27. Re1 {[%emt 0:00:30][%cal Oe4g6]} Nxe4 {[%emt 0:00:30]} (27... Bxe5 28. Rxe3 Bf4 29. Rf3 $17) 28. Nxe6 {[%emt 0:00:30]} Nd2 $1 {[%emt 0:00:30]} 29. Nd4 {[%emt 0:00:30] [#] Prevents Nf3+.} Bxe5 {[%emt 0:00:30]} ({Black should play} 29... Ra8 $1 $19 {[%cal Ra8a2]} 30. Rxe3 Rxa2) 30. Rxe3 $17 {[%emt 0:00:30]} Bf6 {[%emt 0:00:30][%cal Oc8a8] ...Ra8! is the strong threat. Black is much more active.} 31. Nf5 $2 {[%emt 0:00:30]} Bxb2 $19 {[%emt 0:00:30]} 32. Ne7+ {[%emt 0:00:30]} (32. Nxh6+ $2 {is the wrong capture.} Kg7 33. Re2 Rc2 $19) 32... Kf8 {[%emt 0:00:30]} 33. Nxc8 {[%emt 0:00:30][%mdl 4096] Endgame. KRN-KBN} Bd4 {[%emt 0:00:30]} 34. Kf2 {[%emt 0:00:30][%cal Of2e2] [#]} Nf1 $1 {[%emt 0:00:30][%mdl 512]} 35. Kxf1 {[%emt 0:00:30]} Bxe3 {KB-KN} 36. Ke2 {[%emt 0:00:30]} (36. Nd6 {only move.} Ke7 37. Nc4) 36... Bc5 {[%emt 0:01:00] Strongly threatening ...Ke8.} 37. Kf3 $2 {[%emt 0:00:30]} (37. d4 Bxd4 38. Nd6) 37... Ke8 {[%emt 0:00:30]} 38. d4 {[%emt 0:00:30]} Kd7 {[%emt 0:00:30]} 39. dxc5 {[%emt 0:00:30]} Kxc8 {[%emt 0:00:30]} 40. Ke4 {[%emt 0:00:30]} Kc7 {[%emt 0:00:30]} 41. Kd4 {[%emt 0:30:30] Weighted Error Value: White=0.68/Black=0.17 (very precise) .  Loses game:     	White=2     	---        Mistake:       	White=2     	Black=2      Inaccurate:     	White=2     	Black=1      OK:         	White=12    	Black=13     Best:        	White=3     	Black=6      Strong:       	---       	Black=1      Brilliant:      	---       	Black=1} 0-1

[Event "14th Karen Asrian Memorial 2024"]
[Site "Yerevan"]
[Date "2024.04.24"]
[Round "1.7"]
[White "Shahinyan, David"]
[Black "Khachatryan, Anna"]
[Result "1-0"]
[ECO "B23"]
[WhiteElo "2441"]
[BlackElo "2014"]
[Annotator "TA"]
[PlyCount "69"]
[EventDate "2024.04.24"]
[EventType "swiss"]
[EventCountry "ARM"]
[SourceTitle "playchess.com"]
[Source "ChessBase"]
[SourceQuality "1"]
[TimeControl "40/5400+30:1800+30"]

{[%evp 9,69,7,13,0,7,-9,29,18,9,11,16,18,16,0,-12,-16,-13,-10,-16,-25,-12,-7,-13,-13,0,-12,-16,0,-11,-12,0,0,0,0,0,0,0,-18,0,-6,0,0,0,0,33,24,17,21,68,71,72,67,67,67,595,590,1636,1602,1481,1478,29986,29987]} 1. e4 {[%emt 0:00:03]} c5 {[%emt 0:00:17]} 2. Nc3 {[%emt 0:00:08]} Nc6 {[%emt 0:00:15]} 3. Bb5 {[%emt 0:00:07]} Nd4 {[%emt 0:01:16]} 4. Nf3 {[%emt 0:00:05]} a6 {[%emt 0:00:13]} 5. Bd3 {[%emt 0:00:07]} Nc6 {[%emt 0:00:56]} 6. O-O {[%emt 0:00:23]} e6 {[%emt 0:00:05]} 7. Nd5 {[%emt 0:00:12]} d6 {[%emt 0:01:22]} 8. Ne3 {[%emt 0:00:09] White has an edge.} g6 {[%emt 0:00:53]} 9. c3 {[%emt 0:00:05]} Bg7 {[%emt 0:00:09]} 10. Bc2 {[%emt 0:00:05]} d5 {[%emt 0:05:48]} 11. exd5 {[%emt 0:08:00]} exd5 {[%emt 0:00:08]} 12. d4 {[%emt 0:00:38]} cxd4 {[%emt 0:00:22]} 13. cxd4 {[%emt 0:00:07]} Nge7 {[%emt 0:01:04]} 14. b3 {[%emt 0:00:48]} O-O {[%emt 0:05:13]} 15. Bb2 {[%emt 0:06:34]} Be6 {[%emt 0:15:21]} 16. Qd2 {[%emt 0:05:15]} Qd6 {[%emt 0:07:30]} 17. Rfe1 {[%emt 0:03:08]} Rfe8 {[%emt 0:11:10]} 18. Rad1 {[%emt 0:07:39]} Rad8 {[%emt 0:01:27]} 19. h3 {[%emt 0:07:43]} Nc8 {[%emt 0:18:06][%cal Be7c8,Bc8d6,Bd6e4][%mdl 32]} 20. Ng4 {[%emt 0:04:45]} Bxg4 {[%emt 0:10:41]} 21. hxg4 {[%emt 0:00:11]} Qc7 {[%emt 0:04:33]} 22. Bb1 {[%emt 0:11:21]} Nd6 {[%emt 0:04:52]} 23. Qg5 {[%emt 0:11:01]} Ne4 {[%emt 0:06:16]} 24. Qh4 {[%emt 0:00:04]} h6 {[%emt 0:01:50]} 25. Ne5 {[%emt 0:05:37]} Nxe5 {[%emt 0:02:26]} 26. dxe5 {[%emt 0:00:03]} Nc3 {[%emt 0:00:41]} 27. Bxc3 {[%emt 0:01:47]} Qxc3 {[%emt 0:00:06]} 28. e6 {[%emt 0:00:02] exf7+ would now be deadly.} g5 {[%emt 0:00:53]} (28... Qf6 $11 29. exf7+ Qxf7) 29. exf7+ $14 Kxf7 {[%emt 0:00:01] [#]} 30. Qh5+ $1 {[%emt 0:02:19]} Kf8 {[%emt 0:00:12]} 31. Rf1 {[%emt 0:00:01] And now Rd3 would win.} d4 $2 {[%emt 0:01:21][%mdl 8192] Black cannot hold the game after this.} (31... Re7 $14) 32. Rd3 $18 {[%emt 0:00:13]} Qc7 {[%emt 0:00:24]} 33. Rf3+ {[%emt 0:00:08]} Kg8 {[%emt 0:00:21]} 34. Qg6 {[%emt 0:00:04][%csl Gb1][%cal Rg6h7] [#]} d3 {[%emt 0:00:18]} 35. Bxd3 {[%emt 0:00:04] Weighted Error Value: White=0.03 (flawless) /Black=0.59.  Loses game:     	---       	Black=1      Mistake:       	---       	Black=1      Inaccurate:     	White=1     	Black=3      OK:         	White=11    	Black=10     Best:        	White=2     	Black=1      Strong:       	White=1     	---} 1-0

[Event "14th Karen Asrian Memorial 2024"]
[Site "Yerevan"]
[Date "2024.04.24"]
[Round "1.8"]
[White "Pereverzev, Timofei"]
[Black "Aleksandrov, Aleksej"]
[Result "1/2-1/2"]
[ECO "C77"]
[WhiteElo "1989"]
[BlackElo "2438"]
[Annotator "TA"]
[PlyCount "97"]
[EventDate "2024.04.24"]
[EventType "swiss"]
[EventCountry "ARM"]
[SourceTitle "playchess.com"]
[Source "ChessBase"]
[SourceQuality "1"]
[TimeControl "40/5400+30:1800+30"]

{[%evp 13,97,24,22,24,29,19,25,14,19,21,40,37,90,107,53,29,45,34,36,27,36,32,21,30,30,32,43,0,22,23,27,29,14,15,39,0,0,0,0,-18,0,0,0,0,37,31,41,0,89,77,71,70,70,16,11,11,38,8,63,8,28,-12,-12,-18,-7,-51,-45,-34,-42,-63,-68,-62,-69,-73,-25,-29,-8,-8,38,46,47,31,31,31,60,0]} 1. e4 {[%emt 0:00:04]} e5 {[%emt 0:00:06]} 2. Nf3 {[%emt 0:00:09]} Nc6 {[%emt 0:00:06]} 3. Bb5 {[%emt 0:00:04]} a6 {[%emt 0:00:04]} 4. Ba4 {[%emt 0:00:04]} Nf6 {[%emt 0:00:04][%cal Bg8f6,Bf6d7,Bd7c5,Bc5e6][%mdl 32]} 5. d3 {[%emt 0:00:57]} d6 {[%emt 0:01:38]} 6. c3 {[%emt 0:00:27]} g6 {[%emt 0:00:06]} 7. O-O {[%emt 0:00:08]} Bg7 {[%emt 0:00:03]} 8. h3 {[%emt 0:00:49]} O-O {[%emt 0:00:11]} 9. Nbd2 {[%emt 0:00:08]} Nd7 {[%emt 0:07:34]} 10. Re1 {[%emt 0:02:05] White has an edge.} Nc5 {[%emt 0:00:17]} 11. Bc2 {[%emt 0:00:07]} Ne6 {[%emt 0:01:55]} 12. Nf1 {[%emt 0:02:56]} f5 {[%emt 0:00:39] [#]} (12... a5 $14) 13. exf5 $1 $16 {[%emt 0:15:55]} gxf5 {[%emt 0:00:05] [#]} 14. d4 $1 {[%emt 0:01:18]} e4 $1 {[%emt 0:03:14]} 15. d5 {[%emt 0:00:31][%csl LRc6,LRe6]} exf3 {[%emt 0:00:06]} 16. dxe6 {[%emt 0:00:05]} Ne5 {[%emt 0:00:06]} 17. Bb3 {[%emt 0:01:03] Threatens to win with e7+.} (17. gxf3 f4 (17... Bxe6 18. f4 $16) 18. Qd5 Qg5+ $17) 17... Qe7 {[%emt 0:01:31] [#]} 18. Bg5 {[%emt 0:03:21]} Qxg5 {[%emt 0:09:14][%csl Gf3][%cal Rg5g2]} 19. e7+ {[%emt 0:00:01]} Kh8 {[%emt 0:00:11][%csl Gf3][%cal Rg5g2]} 20. exf8=Q+ {[%emt 0:00:10]} (20. exf8=B $2 Qxg2#) 20... Bxf8 {[%emt 0:00:02][%csl Gf3][%cal Rg5g2]} 21. g3 {[%emt 0:00:49] aiming for Nd2. Really sharp!} f4 {[%emt 0:01:23]} 22. Qd2 {[%emt 0:05:49]} Bxh3 {[%emt 0:05:46]} 23. Qxf4 $40 {[%emt 0:00:07][%mdl 128] White attacks.} Qh5 {[%emt 0:05:54] ...Bxf1 would now be deadly.} 24. Ne3 {[%emt 0:03:34]} (24. Nh2 $5) 24... Bg7 {[%emt 0:06:20]} 25. Rad1 {[%emt 0:02:35]} Rf8 {[%emt 0:02:32]} 26. Qe4 {[%emt 0:13:55]} Bc8 {[%emt 0:07:30] A strong pair of Bishops.} 27. Qh4 {[%emt 0:15:41] Prevents Bf6.} Qxh4 {[%emt 0:00:28]} 28. gxh4 {[%emt 0:00:02]} Ng6 {[%emt 0:00:06][%cal Og6f4]} 29. Nd5 {[%emt 0:05:00]} Be5 {[%emt 0:00:27]} 30. h5 {[%emt 0:00:47]} (30. Rxe5 {simplifies} dxe5 31. h5 Nh4 32. Nxc7 e4 33. Ne6) 30... Nh4 {[%emt 0:07:38]} (30... Rf5 $1 $11 31. hxg6 Rg5+ 32. Kh1 Rh5+ 33. Kg1 Bh2+ 34. Kh1 Bf4+ 35. Kg1 Bh2+ 36. Kh1 Bf4+ 37. Kg1 Bh2+) 31. Nxc7 {[%emt 0:01:19]} Ng2 {[%emt 0:00:05] [#]} 32. Rxe5 $1 {[%emt 0:07:27]} dxe5 {[%emt 0:02:46]} 33. Bd5 {[%emt 0:00:04] White is more active.} ({White should try} 33. h6 $14) 33... Nf4 $11 {[%emt 0:06:55]} 34. Bxf3 {[%emt 0:06:26]} Nh3+ {[%emt 0:00:03]} 35. Kg2 {[%emt 0:00:12]} Nxf2 {[%emt 0:00:05]} 36. Rd2 {[%emt 0:00:37]} (36. Kxf2 $14 Bg4 37. Rd3) 36... Nh3 {[%emt 0:01:15]} (36... e4 $5) 37. Nd5 {[%emt 0:00:36]} Ng5 {[%emt 0:03:00]} 38. Rf2 {[%emt 0:01:52]} Kg7 {[%emt 0:00:47]} 39. Be2 {[%emt 0:00:27][%cal Oh5h6] Hoping for h6+!} Bh3+ {[%emt 0:03:18]} 40. Kg1 {[%emt 0:00:00][%cal Oh5h6] h6+! is the strong threat.} Rd8 {[%emt 0:00:00]} 41. c4 {[%emt 0:00:36]} Be6 {[%emt 0:01:53] Strongly threatening ...Nh3+.} 42. Rg2 {[%emt 0:03:54]} Kh6 {[%emt 0:01:42]} 43. Kf2 {[%emt 0:11:39]} b5 {[%emt 0:04:53]} (43... Bxd5 $17 44. cxd5 Nh3+ (44... Rxd5 45. Ke3 $15) 45. Ke3 Nf4 (45... Rxd5 46. Bf3 $11)) 44. Ke3 {[%emt 0:01:13]} bxc4 {[%emt 0:00:44]} 45. Nf6 {[%emt 0:00:17][%cal Of6h7]} Rb8 {[%emt 0:06:54] [#]} (45... Nh3 $11 46. Ng4+ Bxg4 (46... Kxh5 47. Nxe5+ Kh6 48. Bxc4 $14) 47. Rxg4 c3 (47... Kxh5 $2 {is the wrong capture.} 48. Rg8+ Kh6 49. Rxd8 $18)) 46. Nxh7 $1 $14 {[%emt 0:01:00] White is slightly better.} Kxh7 {[%emt 0:02:07]} 47. Rxg5 {[%emt 0:00:02]} Rxb2 {[%emt 0:01:00]} 48. Rxe5 {[%emt 0:00:07]} Bg8 {[%emt 0:00:29]} 49. Rc5 {[%emt 0:03:39] Weighted Error Value: White=0.14 (very precise) /Black=0.13 (very precise) .  Mistake:       	White=3     	Black=5      Inaccurate:     	White=4     	Black=2      OK:         	White=14    	Black=14     Best:        	White=7     	Black=4      Strong:       	White=1     	Black=1      Brilliant:      	White=1     	---} (49. a4 $14) 1/2-1/2

[Event "14th Karen Asrian Memorial 2024"]
[Site "Yerevan"]
[Date "2024.04.25"]
[Round "2.1"]
[White "Pashikyan, Rudolf"]
[Black "Petrosyan, Manuel"]
[Result "0-1"]
[ECO "B51"]
[WhiteElo "2286"]
[BlackElo "2616"]
[Annotator "TA"]
[PlyCount "112"]
[EventDate "2024.04.24"]
[EventType "swiss"]
[EventCountry "ARM"]
[SourceTitle "playchess.com"]
[Source "ChessBase"]
[SourceQuality "1"]
[TimeControl "40/5400+30:1800+30"]

{[%evp 9,112,12,31,18,23,6,15,16,14,12,9,0,0,-22,0,-22,-18,-20,-35,-39,-40,-41,-25,-25,-18,-105,-106,-99,-72,-103,-58,-60,0,-27,0,0,0,0,14,12,4,26,22,0,0,-17,-12,-18,-8,-18,0,-102,-31,-156,-56,-53,-48,-56,-55,-118,-107,-97,-112,-104,-106,-104,-117,-102,-53,-61,-59,-53,0,-57,-49,-46,-47,-49,-41,-54,-54,-52,-50,-61,-61,-61,-46,-131,-133,-144,-145,-179,-179,-222,-219,-311,-306,-360,-353,-571,-558,-783,-783,-950,-922]} 1. e4 {[%emt 0:00:08]} c5 {[%emt 0:03:23]} 2. Nf3 {[%emt 0:00:16]} d6 {[%emt 0:00:06]} 3. Bb5+ {[%emt 0:00:09]} Nd7 {[%emt 0:00:32]} 4. Ba4 {[%emt 0:00:13]} Ngf6 {[%emt 0:00:39]} 5. O-O {[%emt 0:00:18]} g6 {[%emt 0:00:55]} 6. Qe2 {[%emt 0:00:52]} a6 {[%emt 0:00:48] White must now prevent ...b5.} 7. c3 {[%emt 0:00:34]} b5 {[%emt 0:00:53]} 8. Bc2 {[%emt 0:00:08] The position is equal.} Bb7 {[%emt 0:00:18]} 9. d4 {[%emt 0:00:11]} Bg7 {[%emt 0:00:06]} 10. a4 {[%emt 0:01:13]} O-O {[%emt 0:00:56]} 11. h3 {[%emt 0:01:52]} Qc7 {[%emt 0:04:47]} 12. d5 {[%emt 0:26:01]} b4 {[%emt 0:18:47]} 13. a5 {[%emt 0:00:24]} Rae8 {[%emt 0:04:04]} 14. Bf4 {[%emt 0:07:02]} e6 {[%emt 0:05:42]} 15. dxe6 {[%emt 0:01:03]} Rxe6 {[%emt 0:05:43][%cal Rf6e4]} 16. Ng5 {[%emt 0:07:21]} Re7 {[%emt 0:00:13]} 17. Qd1 {[%emt 0:02:01] [#]} (17. Rd1 $11 Ne5 18. Nd2) 17... Ne5 $1 $17 {[%emt 0:02:04]} (17... Nxe4 $2 {loses.} 18. Bxe4 Rxe4 (18... Bxe4 $2 {perishes.} 19. Bxd6 Qc6 20. Bxe7 $18) 19. Nxe4 (19. Bxd6 Qc6 $18) 19... Bxe4 20. f3 $18 (20. Qxd6 Qb7 $16) (20. Bxd6 Qc6 $18)) (17... Bxe4 $2 18. Bxe4 Nxe4 19. Nxe4 Rxe4 20. Bxd6 $18 (20. Qxd6 Qxd6 21. Bxd6 Rfe8 $17)) 18. Nd2 {[%emt 0:01:30]} bxc3 {[%emt 0:14:14]} 19. bxc3 {[%emt 0:00:09]} Rd8 {[%emt 0:00:02]} 20. Ngf3 {[%emt 0:06:19]} Bc6 {[%emt 0:03:15]} (20... Nc6 $15) 21. Re1 {[%emt 0:10:11]} Bb5 {[%emt 0:02:00]} 22. Nxe5 {[%emt 0:00:23]} dxe5 {[%emt 0:00:15]} 23. Be3 {[%emt 0:00:10]} Nh5 {[%emt 0:04:42]} 24. Qb1 {[%emt 0:05:06]} Rb8 {[%emt 0:11:24]} 25. Qa2 {[%emt 0:03:15]} c4 {[%emt 0:01:41]} 26. Bb6 {[%emt 0:07:17]} Qc6 {[%emt 0:00:04]} 27. Nf1 {[%emt 0:00:05]} Nf4 {[%emt 0:03:39]} 28. Ne3 {[%emt 0:05:02]} Rd7 {[%emt 0:00:05]} 29. Kf1 {[%emt 0:02:42]} Bf8 {[%emt 0:05:07]} 30. Ng4 {[%emt 0:08:20] [#]} (30. Red1 $11) 30... Re8 {[%emt 0:03:40] Black is more active.} (30... Nd3 $1 $17 31. Kg1 Bg7) 31. Rad1 {[%emt 0:01:41]} (31. Ne3 $15) 31... Rxd1 {[%emt 0:00:05]} (31... Nd3 $17 {And now ...h5 would win.} 32. Re2 h5) 32. Rxd1 $15 {[%emt 0:00:03] [#]} f5 $1 {[%emt 0:01:06]} 33. Ne3 {[%emt 0:00:56]} fxe4 {[%emt 0:00:02]} 34. g3 {[%emt 0:00:29]} ({White should try} 34. Ra1 $15) 34... Nd3 {[%emt 0:01:31]} ({Don't play} 34... Nxh3 $6 35. Qb1 Ng5 36. Nd5 $11) 35. Bxd3 {[%emt 0:00:17]} exd3 {[%emt 0:00:03]} 36. Rxd3 {[%emt 0:00:04]} Qh1+ {[%emt 0:00:48]} 37. Ke2 {[%emt 0:00:07]} Qxh3 {[%emt 0:00:19]} 38. Rd1 {[%emt 0:01:26][%cal Oe2e1]} Qh5+ {[%emt 0:01:44]} (38... Kf7 $17 39. Qc2 Bc6) 39. Ke1 {[%emt 0:03:34]} Qh1+ {[%emt 0:01:38]} 40. Ke2 {[%emt 0:00:00]} Qh5+ {[%emt 0:00:00]} 41. Ke1 {[%emt 0:02:01][%cal Oe3d5]} Kg7 {[%emt 0:09:35]} 42. Qe2 {[%emt 0:04:06]} Qh1+ {[%emt 0:00:33]} (42... Qxe2+ {simplifies} 43. Kxe2 Bc6 44. Nd5 Bd6) 43. Qf1 {[%emt 0:00:15]} Qe4 {[%emt 0:07:00]} 44. Qg2 {[%emt 0:00:18]} Qxg2 {[%emt 0:01:14]} 45. Nxg2 {[%emt 0:00:06]} Kf7 {[%emt 0:01:48]} 46. Ne3 {[%emt 0:00:17]} Rc8 {[%emt 0:00:55]} 47. Nd5 $1 {[%emt 0:04:13]} Bd6 {[%emt 0:00:20] Prevents Nc7.} 48. Ke2 {[%emt 0:03:04]} (48. Nf6 $1 $15 Kxf6 49. Rxd6+ Ke7 50. Rd2) 48... Ke6 $17 {[%emt 0:06:20]} 49. Ne3 {[%emt 0:00:28]} h5 {[%emt 0:00:37]} 50. Rh1 {[%emt 0:05:46]} Bc6 {[%emt 0:01:16]} 51. Rb1 {[%emt 0:04:30]} Be4 {[%emt 0:01:09] A strong pair of Bishops.} 52. Rb2 {[%emt 0:00:07]} (52. Re1 $142) 52... Bd3+ $19 {[%emt 0:01:59]} 53. Ke1 {[%emt 0:00:46]} g5 {[%emt 0:00:31]} 54. Ng2 $2 {[%emt 0:00:38] [#]} (54. Ba7 {was called for.}) 54... h4 $1 {[%emt 0:01:44][%mdl 512] Black is clearly winning.} 55. gxh4 {[%emt 0:00:20]} (55. Ne3 h3) 55... gxh4 {[%emt 0:00:06]} 56. Nxh4 {[%emt 0:00:14]} Rh8 {[%emt 0:00:21] Weighted Error Value: White=0.29 (precise) /Black=0.14 (very precise) .  Mistake:       	White=7     	Black=4      Inaccurate:     	White=3     	Black=2      OK:         	White=14    	Black=28     Best:        	White=4     	---        Strong:       	White=1     	Black=1} 0-1

[Event "14th Karen Asrian Memorial 2024"]
[Site "Yerevan"]
[Date "2024.04.25"]
[Round "2.2"]
[White "Andriasian, Zaven"]
[Black "Atoyan, Alberto"]
[Result "1/2-1/2"]
[ECO "C54"]
[WhiteElo "2570"]
[BlackElo "2243"]
[Annotator "TA"]
[PlyCount "77"]
[EventDate "2024.04.24"]
[EventType "swiss"]
[EventCountry "ARM"]
[SourceTitle "playchess.com"]
[Source "ChessBase"]
[SourceQuality "1"]
[TimeControl "40/5400+30:1800+30"]

{[%evp 10,77,9,4,8,6,12,0,14,5,8,18,8,0,12,4,5,-107,-118,-108,-113,-114,-119,-98,-100,-195,-100,-116,-100,-110,-93,-127,-123,-148,-123,-162,-167,-162,-115,-119,-113,-132,-100,-112,-42,-85,-96,-200,-199,-187,-31,-64,-13,-17,0,0,0,0,0,0,0,-55,0,-41,-37,-70,-49,-45,-43,-125]} 1. e4 {[%emt 0:00:06]} e5 {[%emt 0:00:11]} 2. Nf3 {[%emt 0:00:08]} Nc6 {[%emt 0:00:15]} 3. Bc4 {[%emt 0:00:10]} Bc5 {[%emt 0:00:11]} 4. d3 {[%emt 0:00:22]} Nf6 {[%emt 0:00:15]} 5. Nbd2 {[%emt 0:00:21]} d6 {[%emt 0:00:24]} 6. c3 {[%emt 0:00:10]} a5 {[%emt 0:00:07]} 7. O-O {[%emt 0:01:44]} O-O {[%emt 0:00:32]} 8. h3 {[%emt 0:00:36]} h6 {[%emt 0:00:56] The position is equal.} 9. Re1 {[%emt 0:00:08]} Be6 {[%emt 0:00:16]} 10. Bb5 {[%emt 0:00:15]} Qb8 {[%emt 0:00:26]} 11. Nh4 {[%emt 0:01:10]} Qa7 {[%emt 0:06:55]} 12. Qf3 {[%emt 0:00:24]} Ne7 {[%emt 0:07:19]} 13. Nf1 {[%emt 0:02:18] [#]} (13. Nf5 $11 {keeps the balance.} Nxf5 14. exf5) 13... Ng6 $1 $17 {[%emt 0:08:32]} 14. Nf5 {[%emt 0:12:56]} Bxf5 {[%emt 0:11:29]} 15. exf5 {[%emt 0:00:17]} Nh4 {[%emt 0:01:46]} 16. Qe2 {[%emt 0:00:11]} Nxf5 {[%emt 0:03:18]} 17. g4 {[%emt 0:00:11]} (17. Ba4 $17) 17... Ne7 {[%emt 0:05:35]} (17... Nh4 $19 {...a4 is the strong threat.} 18. Ng3 c6) 18. g5 {[%emt 0:01:13]} hxg5 {[%emt 0:04:28]} 19. Bxg5 {[%emt 0:00:42][%cal Od3d4] [#]} Ned5 $1 {[%emt 0:01:26]} 20. d4 {[%emt 0:04:46]} exd4 {[%emt 0:05:36]} 21. Qf3 {[%emt 0:00:25]} Nh7 {[%emt 0:08:47]} 22. Bd2 {[%emt 0:00:42]} dxc3 {[%emt 0:01:24]} 23. bxc3 {[%emt 0:00:08][%cal Ob5d3]} Ndf6 {[%emt 0:04:29]} (23... c6 $19 24. Bd3 b5) 24. Ng3 {[%emt 0:03:48]} c6 {[%emt 0:06:04]} 25. Bd3 {[%emt 0:00:33]} Rfe8 {[%emt 0:04:36]} 26. Nf5 {[%emt 0:00:54]} g6 {[%emt 0:03:43]} (26... b5 $17 27. Rxe8+ Rxe8 28. Qxc6 Bxf2+ 29. Kg2 b4 30. cxb4 axb4 31. Bxb4 Bc5 32. Bxc5 dxc5) 27. Nh6+ {[%emt 0:02:35]} Kg7 {[%emt 0:00:10]} 28. Qg2 {[%emt 0:11:43]} (28. Ng4 $17 {was worth a try.} Nxg4 29. hxg4) 28... b5 $19 {[%emt 0:02:29]} 29. Kh1 {[%emt 0:01:54]} Kh8 $2 {[%emt 0:03:27]} ({Much less strong is} 29... Rxe1+ 30. Rxe1 d5 (30... Bxf2 $2 31. Re7 $18) 31. Rg1) ({Black should try} 29... d5 $19 {...Qd7 would now be deadly.} 30. Nf5+ Kf8 31. Bh6+ Kg8) 30. f4 {[%emt 0:02:31][%cal Bf2f4,Bf4f5][%mdl 32]} Rxe1+ {[%emt 0:04:08]} (30... Bf2 $15 31. Rxe8+ Rxe8 32. Nxf7+ Qxf7 33. Bxg6 Qd5 34. Qxd5 cxd5 35. Bxe8 Nxe8) 31. Rxe1 $11 {[%emt 0:00:13][%cal Of4f5]} Re8 {[%emt 0:01:17]} 32. Rxe8+ {[%emt 0:05:19]} Nxe8 {[%emt 0:00:01]} 33. f5 {[%emt 0:00:47]} (33. Qxc6 Nef6 34. Qf3 Kg7) 33... g5 {[%emt 0:03:07]} 34. Bxg5 {[%emt 0:19:01]} Nef6 {[%emt 0:00:44]} 35. Bd2 {[%emt 0:14:41]} (35. Bf4 $11) 35... Qe7 {[%emt 0:01:20]} (35... d5 $1 $15) 36. Qg3 {[%emt 0:07:38]} ({Reject} 36. Qxc6 Be3 37. Nxf7+ Kg7 38. Bxe3 (38. Nxd6 $2 {loses.} Bxd2 39. Qb7 Qxb7+ 40. Nxb7 Nd5 $19) 38... Qxe3 $19) (36. c4 $5 bxc4 37. Bxc4 $11) 36... Qf8 {[%emt 0:01:04] Black is slightly better.} 37. Ng4 {[%emt 0:01:54]} Nxg4 {[%emt 0:00:55]} 38. hxg4 {[%emt 0:00:11][%cal Of5f6] aiming for f6!} f6 {[%emt 0:00:16]} 39. g5 {[%emt 0:03:44] White happily takes the draw.   Weighted Error Value: White=0.25 (precise) /Black=0.22 (precise) .  Mistake:       	White=5     	Black=6      Inaccurate:     	White=6     	---        OK:         	White=11    	Black=13     Best:        	White=1     	Black=2      Strong:       	---       	Black=2} ({White should play} 39. c4 $15) 1/2-1/2